bitfinex-derivatives/quotes_SOLF0:USTF0_20250320
["timestamp","ask_amount","ask_price","bid_price","bid_amount"]
[1742430618072,7.397,135.16,135.14,0.05557007]
[1742430618270,0.04816524,135.17,135.14,0.05557007]
[1742430618869,0.04816524,135.17,135.14,28.29557007]
[1742430618870,7.397,135.16,135.14,28.29557007]
[1742430619170,0.04816524,135.17,135.14,28.29557007]
[1742430619470,7.3973,135.16,135.14,28.29557007]
[1742430619972,0.04816524,135.17,135.14,28.29557007]
[1742430620169,7.44466524,135.17,135.14,35.69327007]
[1742430620471,0.04816524,135.17,135.14,28.29557007]
[1742430620867,0.04816524,135.17,135.15,20.68160119]
[1742430621273,0.04816524,135.17,135.16,7.397]
[1742430622272,0.04816524,135.17,135.15,28.07880119]
[1742430623573,11.06747892,135.24,135.15,20.68160119]
[1742430623774,7.3947,135.21,135.17,20.68160119]
[1742430623963,5.5201,135.24,135.18,35.6158]
[1742430624368,7.3945,135.21,135.18,35.6158]
[1742430624867,7.44470748,135.21,135.18,35.67068999]
[1742430625171,0.05020748,135.21,135.2,7.3948]
[1742430626976,0.05020748,135.21,135.19,28.07670119]
[1742430627173,0.05020748,135.21,135.18,30.92468999]
[1742430628274,0.05020748,135.21,135.2,7.3948]
[1742430628969,0.05020748,135.21,135.19,28.07670119]
[1742430629170,0.05020748,135.21,135.18,48.95649118]
[1742430629479,7.3948,135.2,135.18,0.05488999]
[1742430629773,0.05020748,135.21,135.18,48.95649118]
[1742430630175,7.44440748,135.21,135.18,48.95649118]
[1742430630577,0.05020748,135.21,135.2,20.68160119]
[1742430630775,0.05020748,135.21,135.2,28.07640119]
[1742430632178,0.05020748,135.21,135.2,20.68160119]
[1742430632475,0.05020748,135.21,135.18,48.95649118]
[1742430633081,0.05020748,135.21,135.18,56.35229118]
[1742430633673,7.44490748,135.21,135.18,56.35229118]
[1742430634481,0.05020748,135.21,135.18,28.25488999]
[1742430634682,0.05020748,135.21,135.18,0.05488999]
[1742430634885,7.3951,135.2,135.18,28.25488999]
[1742430635877,0.05020748,135.21,135.18,48.93649118]
[1742430636083,0.05020748,135.21,135.19,7.395]
[1742430636282,0.05020748,135.21,135.18,48.93649118]
[1742430636689,0.05020748,135.21,135.18,28.25488999]
[1742430637187,7.3953,135.19,135.18,28.25488999]
[1742430637788,7.3953,135.19,135.18,0.05488999]
[1742430638885,7.3977,135.15,135.12,20.68160119]
[1742430639084,7.3977,135.15,135.13,28.2]
[1742430639290,20.68160119,135.19,135.13,28.2]
[1742430639678,48.88160119,135.19,135.11,7.3994]
[1742430639880,20.68160119,135.17,135.11,28.2]
[1742430640081,28.24790378,135.16,135.14,0.0508601]
[1742430640490,7.3975,135.15,135.14,0.0508601]
[1742430641084,20.68160119,135.15,135.06,20.68160119]
[1742430641390,20.68160119,135.13,135.06,28.2]
[1742430641592,48.88160119,135.13,135.06,28.2]
[1742430642091,48.88160119,135.13,135.05,41.031532]
[1742430642392,20.73356393,135.11,135.08,0.05494383]
[1742430642783,7.4008,135.09,135.08,0.05494383]
[1742430645293,7.4033,135.05,135.03,28.22]
[1742430645484,7.4033,135.05,135.0,30.96990119]
[1742430645685,7.4033,135.05,135.01,28.22]
[1742430646293,0.05086356,135.04,135.02,0.05180727]
[1742430647187,0.05086356,135.04,135.02,28.27180727]
[1742430647989,7.4041,135.03,135.02,0.05180727]
[1742430650600,20.68160119,135.03,134.95,2.6866]
[1742430650793,20.68160119,135.03,134.96,28.22]
[1742430650991,20.68160119,134.99,134.89,166.55999308]
[1742430651194,48.90160119,134.99,134.91,69.251532]
[1742430651599,48.90160119,134.99,134.92,7.4098]
[1742430651800,0.05489079,134.96,134.94,0.05120678]
[1742430652597,7.4085,134.95,134.94,0.05120678]
[1742430653795,7.4085,134.95,134.87,260.8664]
[1742430653796,20.68160119,134.95,134.88,28.22]
[1742430653995,5.6867,134.94,134.87,5.4864]
[1742430654295,28.22,134.93,134.86,10.257883]
[1742430654494,28.22,134.93,134.87,28.22]
[1742430655092,0.04669575,134.91,134.89,0.04972245]
[1742430655490,7.4112,134.9,134.89,0.04972245]
[1742430656094,7.4123,134.89,134.83,2.8411]
[1742430656296,28.22,134.9,134.82,28.22]
[1742430656692,7.4127,134.88,134.82,35.6353]
[1742430657293,0.04763787,134.86,134.83,28.24]
[1742430657695,0.04763787,134.86,134.78,8.5288]
[1742430657896,0.04763787,134.86,134.79,28.24]
[1742430658097,0.04763787,134.86,134.8,33.2350328]
[1742430658300,0.04763787,134.86,134.84,7.4141]
[1742430658504,0.04763787,134.86,134.83,28.24]
[1742430658800,0.04763787,134.86,134.83,35.6547]
[1742430659000,0.04763787,134.86,134.83,28.24]
[1742430659700,0.04763787,134.86,134.85,7.414]
[1742430660401,0.04763787,134.86,134.81,28.24]
[1742430660601,0.04763787,134.86,134.82,28.24]
[1742430661503,0.04763787,134.86,134.84,7.4141]
[1742430661698,0.04763787,134.86,134.82,28.24]
[1742430662005,0.04763787,134.86,134.82,61.4750328]
[1742430662201,0.04763787,134.86,134.85,7.414]
[1742430662401,0.04763787,134.86,134.83,28.24]
[1742430662704,0.04763787,134.86,134.83,7.4148]
[1742430662997,0.04763787,134.86,134.83,28.24]
[1742430665305,7.46113787,134.86,134.83,28.24]
[1742430665602,0.04763787,134.86,134.81,28.24]
[1742430665803,0.04763787,134.86,134.78,2.8182]
[1742430666005,28.24,134.85,134.79,28.24]
[1742430666603,7.4146,134.84,134.79,35.657]
[1742430666804,28.24,134.85,134.79,35.657]
[1742430667002,0.04767477,134.83,134.8,7.4163]
[1742430667201,0.04767477,134.83,134.79,28.24]
[1742430667908,0.04767477,134.83,134.8,7.4167]
[1742430668208,0.04767477,134.83,134.81,7.4162]
[1742430668411,0.04767477,134.83,134.82,28.24]
[1742430668604,0.04767477,134.83,134.78,28.24]
[1742430668909,0.04767477,134.83,134.79,28.26]
[1742430669304,28.26,134.82,134.7,319.05075331]
[1742430669510,365.0,134.85,134.74,28.26]
[1742430669707,261.3019,134.86,134.79,7.4171]
[1742430669909,261.3019,134.86,134.8,28.26]
[1742430670105,0.05515902,134.84,134.8,28.26]
[1742430671710,7.46975902,134.84,134.8,35.6764]
[1742430671912,0.05515902,134.84,134.8,28.26]
[1742430672214,0.05515902,134.84,134.8,31.0775]
[1742430672908,255.8,134.91,134.82,33.2350328]
[1742430673115,7.412,134.89,134.86,7.4134]
[1742430673312,7.412,134.89,134.87,28.26]
[1742430673504,255.8,134.91,134.87,28.26]
[1742430673808,7.4123,134.88,134.87,28.26]
[1742430674508,255.8,134.91,134.86,0.05512126]
[1742430674509,7.4129,134.87,134.86,0.05512126]
[1742430676920,0.05019216,134.89,134.86,0.05512126]
[1742430677411,7.46239216,134.89,134.86,0.05512126]
[1742430677618,0.05019216,134.89,134.86,0.05512126]
[1742430677814,20.78738444,134.88,134.86,0.05512126]
[1742430678320,7.4129,134.87,134.86,0.05512126]
[1742430678713,28.20028444,134.87,134.86,0.05512126]
[1742430679118,28.20028444,134.87,134.86,2.126e-05]
[1742430679309,20.78738444,134.87,134.8,28.26]
[1742430679515,20.78738444,134.85,134.73,2.7409]
[1742430679709,20.78738444,134.85,134.76,20.78738444]
[1742430679919,20.78738444,134.85,134.77,28.26]
[1742430680219,20.78738444,134.85,134.76,20.78738444]
[1742430680420,7.46271591,134.82,134.79,7.4172]
[1742430680820,0.04671591,134.82,134.78,28.26]
[1742430681021,7.4162,134.81,134.78,35.6775]
[1742430681520,7.4162,134.81,134.78,7.4175]
[1742430681721,7.4167,134.8,134.79,28.26]
[1742430682311,7.4167,134.8,134.77,7.4182]
[1742430682517,7.4167,134.8,134.78,28.26]
[1742430683020,7.4164,134.81,134.78,35.6778]
[1742430683224,0.04671591,134.82,134.78,28.26]
[1742430683419,7.4162,134.81,134.78,35.6776]
[1742430683619,0.04671591,134.82,134.78,28.26]
[1742430684623,7.46261591,134.82,134.79,7.4169]
[1742430684819,7.46261591,134.82,134.78,28.26]
[1742430685126,0.04671591,134.82,134.8,7.4162]
[1742430685327,0.04671591,134.82,134.78,28.26]
[1742430685822,255.8,134.91,134.78,28.26]
[1742430686125,20.78738444,134.9,134.81,20.78738444]
[1742430686329,7.414,134.85,134.82,28.26]
[1742430686520,20.78738444,134.9,134.82,28.26]
[1742430687023,0.05090235,134.87,134.85,0.0471686]
[1742430687225,20.78738444,134.86,134.85,6.86e-05]
[1742430687425,20.78738444,134.86,134.77,7.4181]
[1742430687624,20.78738444,134.86,134.78,28.26]
[1742430688127,2.8964,134.87,134.78,49.04738444]
[1742430688729,0.04912983,134.84,134.8,20.78738444]
[1742430688925,0.04912983,134.84,134.82,20.78738444]
[1742430689125,0.04912983,134.84,134.83,7.4151]
[1742430689430,0.05157859,134.84,134.83,7.4151]
[1742430689622,261.283,134.91,134.85,7.4139]
[1742430689823,289.543,134.91,134.85,7.4139]
[1742430690023,289.543,134.91,134.84,28.26]
[1742430690430,20.78738444,134.9,134.84,28.26]
[1742430690832,7.4129,134.87,134.86,0.05157859]
[1742430691728,7.46240269,134.88,134.86,0.05157859]
[1742430691930,0.04980269,134.88,134.86,0.05157859]
[1742430692533,7.4129,134.87,134.86,0.05157859]
[1742430692735,0.04980269,134.88,134.86,0.05157859]
[1742430693534,0.04980269,134.88,134.87,28.26]
[1742430694036,0.04980269,134.88,134.87,35.6729]
[1742430696038,20.78738444,134.94,134.88,7.4123]
[1742430696233,20.78738444,134.94,134.87,28.26]
[1742430696741,20.78738444,134.94,134.88,7.4121]
[1742430696941,261.3917,134.96,134.88,20.78738444]
[1742430696942,310.41908444,134.96,134.88,20.78738444]
[1742430697243,0.04862141,134.93,134.91,0.05570224]
[1742430697542,0.04862141,134.93,134.91,28.29570224]
[1742430698540,7.45832141,134.93,134.91,28.29570224]
[1742430699135,7.4101,134.92,134.91,28.29570224]
[1742430699639,28.19748444,134.92,134.91,0.05570224]
[1742430699938,20.78738444,134.92,134.88,28.24]
[1742430700138,20.78738444,134.92,134.86,28.24]
[1742430700444,7.4121,134.89,134.86,28.24]
[1742430700942,7.46112194,134.89,134.86,35.69897904]
[1742430701346,7.4124,134.88,134.86,28.28567904]
[1742430702048,0.04902194,134.89,134.86,28.28567904]
[1742430702247,0.04902194,134.89,134.86,0.04567904]
[1742430702448,7.4129,134.87,134.86,0.04567904]
[1742430704847,0.04902194,134.89,134.86,0.04567904]
[1742430705047,0.04902194,134.89,134.87,28.24]
[1742430706752,7.4123,134.88,134.87,28.24]
[1742430707753,7.46102194,134.89,134.87,28.24]
[1742430708050,0.04902194,134.89,134.87,28.24]
[1742430708348,2.9063,134.94,134.87,28.24]
[1742430708546,28.24,134.95,134.88,20.78738444]
[1742430708746,307.68908444,134.96,134.88,20.78738444]
[1742430708950,7.4098,134.93,134.9,7.4111]
[1742430709250,7.4098,134.93,134.9,35.6511]
[1742430709551,0.05233249,134.93,134.91,7.4105]
[1742430709760,0.05233249,134.93,134.9,28.29474315]
[1742430710050,0.05233249,134.93,134.92,20.78738444]
[1742430710254,7.4075,134.97,134.92,20.78738444]
[1742430710444,284.02,135.01,134.93,28.24]
[1742430710644,284.02,135.01,134.94,7.4088]
[1742430710953,20.78738444,135.0,134.93,28.24]
[1742430711354,7.409,134.94,134.93,28.24]
[1742430711755,7.4094,134.94,134.92,0.05352422]
[1742430712145,0.04867507,134.95,134.92,0.05352422]
[1742430712948,7.4096,134.93,134.92,0.05352422]
[1742430714557,7.4092,134.94,134.92,0.05352422]
[1742430714751,0.04867507,134.95,134.92,0.05352422]
[1742430715255,49.00738444,134.94,134.87,28.22]
[1742430715455,20.78738444,134.91,134.85,28.22]
[1742430715760,7.4132,134.87,134.85,28.22]
[1742430716357,7.46111585,134.87,134.85,28.2718293]
[1742430717358,7.4134,134.86,134.85,28.2718293]
[1742430717557,7.4134,134.86,134.85,0.0518293]
[1742430720958,33.29314803,134.87,134.77,2.7516]
[1742430721154,36.05393218,134.87,134.78,28.24]
[1742430721358,36.05393218,134.87,134.77,2.7516]
[1742430721658,36.05393218,134.87,134.78,28.24]
[1742430722063,7.4162,134.81,134.78,35.6574]
[1742430722365,61.48523218,134.85,134.81,0.04167995]
[1742430722660,7.417,134.8,134.78,28.24]
[1742430723052,7.417,134.8,134.76,266.0662]
[1742430723252,7.4173,134.79,134.78,0.04167995]
[1742430726461,28.24,134.79,134.74,28.24]
[1742430727067,7.419,134.76,134.72,7.4209]
[1742430727257,28.24,134.79,134.72,35.6609]
[1742430727461,61.48523218,134.79,134.71,255.8]
[1742430727658,0.05202041,134.77,134.72,28.24]
[1742430728462,0.05202041,134.77,134.71,28.24]
[1742430728662,7.4198,134.75,134.71,7.4215]
[1742430728863,7.4198,134.75,134.71,35.6615]
[1742430729059,28.24,134.76,134.71,28.24]
[1742430729367,33.24523218,134.75,134.65,41.031532]
[1742430729670,35.95163218,134.75,134.66,28.24]
[1742430729969,0.04929661,134.71,134.66,28.24]
[1742430730666,0.04929661,134.71,134.68,7.423]
[1742430730873,0.04929661,134.71,134.69,28.24]
[1742430731063,0.04929661,134.71,134.68,7.423]
[1742430731262,0.04929661,134.71,134.68,35.663]
[1742430731468,7.47099661,134.71,134.68,28.24]
[1742430731764,0.04929661,134.71,134.64,2.6559]
[1742430732063,7.4225,134.7,134.66,7.4241]
[1742430732569,7.47119661,134.71,134.65,28.24]
[1742430732769,0.04929661,134.71,134.65,28.24]
[1742430733159,0.04929661,134.71,134.69,7.4224]
[1742430733363,0.04929661,134.71,134.64,2.6559]
[1742430733960,0.04929661,134.71,134.66,33.24523218]
[1742430734170,0.04929661,134.71,134.68,7.423]
[1742430734577,0.04929661,134.71,134.67,28.24]
[1742430734867,0.04929661,134.71,134.69,7.4224]
[1742430735068,0.04929661,134.71,134.7,28.26]
[1742430735272,0.04929661,134.71,134.7,35.6822]
[1742430736272,2.8711,134.77,134.7,28.26]
[1742430736771,7.4198,134.75,134.71,7.4214]
[1742430736968,2.8947,134.81,134.7,61.50523218]
[1742430737171,7.4175,134.79,134.73,20.80800805]
[1742430737372,0.05639969,134.77,134.75,7.4194]
[1742430737567,49.06800805,134.84,134.75,20.80800805]
[1742430737770,51.83630805,134.84,134.75,20.80800805]
[1742430738168,20.80800805,134.82,134.74,28.26]
[1742430738372,7.4187,134.77,134.74,28.26]
[1742430738570,20.80800805,134.82,134.74,35.6795]
[1742430738772,0.05187979,134.77,134.74,35.72773196]
[1742430739074,0.05187979,134.77,134.75,7.4193]
[1742430739370,0.05187979,134.77,134.75,20.80800805]
[1742430739570,0.05187979,134.77,134.76,7.4189]
[1742430739971,0.05187979,134.77,134.75,20.80800805]
[1742430740172,0.05187979,134.77,134.75,28.22710805]
[1742430741173,0.05187979,134.77,134.74,28.30823196]
[1742430741174,0.05187979,134.77,134.74,35.72803196]
[1742430741371,0.05187979,134.77,134.74,28.30823196]
[1742430741773,0.05187979,134.77,134.75,7.4192]
[1742430742465,0.05187979,134.77,134.76,7.4189]
[1742430743071,0.00681052,134.77,134.76,7.4189]
[1742430743373,2.7683,134.84,134.79,7.4172]
[1742430743568,7.4159,134.82,134.8,28.24]
[1742430743774,2.7683,134.84,134.8,28.24]
[1742430744078,7.4162,134.81,134.8,28.24]
[1742430745173,7.4677536,134.82,134.8,28.24]
[1742430745974,0.0518536,134.82,134.8,28.24]
[1742430746976,0.0518536,134.82,134.81,7.4162]
[1742430747173,5.5314,134.9,134.81,20.80800805]
[1742430747472,7.4134,134.87,134.82,20.80800805]
[1742430747677,20.80800805,134.9,134.83,28.24]
[1742430747868,20.80800805,134.88,134.83,28.24]
[1742430748273,7.414,134.85,134.84,0.05337583]
[1742430748871,7.4136,134.86,134.84,0.05337583]
[1742430749076,0.0481754,134.87,134.84,0.05337583]
[1742430749581,7.414,134.85,134.84,0.05337583]
[1742430751078,0.0481754,134.87,134.84,0.05337583]
[1742430752475,0.0481754,134.87,134.84,20.86138388]
[1742430752777,0.0481754,134.87,134.85,7.4139]
[1742430752983,0.0481754,134.87,134.86,28.24]
[1742430754283,0.0481754,134.87,134.86,35.6534]
[1742430755387,0.0481754,134.87,134.86,56.46140805]
[1742430757583,255.94,134.95,134.86,49.04800805]
[1742430757786,23.48150805,134.96,134.88,20.80800805]
[1742430757980,23.48150805,134.96,134.89,28.22]
[1742430758183,7.4104,134.92,134.89,35.6317]
[1742430758484,23.48150805,134.96,134.89,35.6317]
[1742430758885,0.04971759,134.92,134.89,28.26827736]
[1742430760482,7.4112,134.9,134.89,28.26827736]
[1742430760987,0.04971759,134.92,134.89,28.26827736]
[1742430762677,0.04971759,134.92,134.91,7.4107]
[1742430763182,5.4263,134.99,134.9,23.62500805]
[1742430763374,7.4085,134.95,134.9,23.62500805]
[1742430763790,5.4263,134.99,134.91,7.4103]
[1742430764087,5.4263,134.99,134.92,28.22]
[1742430764284,0.04763735,134.96,134.94,0.05123832]
[1742430765190,20.8556454,134.96,134.92,28.22]
[1742430765490,7.4096,134.93,134.92,28.22]
[1742430767890,0.04763735,134.96,134.92,28.22]
[1742430768386,7.4096,134.93,134.92,28.22]
[1742430768589,0.04763735,134.96,134.92,28.22]
[1742430768986,7.4096,134.93,134.92,28.22]
[1742430770779,7.4092,134.94,134.92,28.22]
[1742430771891,0.04763735,134.96,134.92,49.02800805]
[1742430772285,7.45553735,134.96,134.92,51.72700805]
[1742430772486,7.45553735,134.96,134.93,7.4093]
[1742430772685,7.45553735,134.96,134.92,51.72700805]
[1742430772885,0.04763735,134.96,134.92,51.72700805]
[1742430773084,0.04763735,134.96,134.94,7.4087]
[1742430773282,0.04763735,134.96,134.92,51.72700805]
[1742430773283,0.04763735,134.96,134.95,28.2]
[1742430773483,0.04763735,134.96,134.95,35.6085]
[1742430773989,7.4061,135.0,134.96,7.4076]
[1742430774195,7.4061,135.0,134.96,20.80800805]
[1742430774590,7.4061,135.0,134.97,7.407]
[1742430774889,7.4061,135.0,134.98,28.2]
[1742430775098,7.4063,134.99,134.98,28.2]
[1742430775393,7.4063,134.99,134.98,28.25209111]
[1742430777301,7.4063,134.99,134.98,0.05209111]
[1742430777485,9.9378,134.99,134.98,0.05209111]
[1742430780996,7.4085,134.95,134.94,28.2]
[1742430781394,20.80800805,134.97,134.9,28.2]
[1742430782099,0.05430109,134.95,134.92,0.05665292]
[1742430782299,7.4096,134.93,134.92,0.05665292]
[1742430790702,5.137,134.94,134.92,0.05665292]
[1742430790895,0.05430109,134.95,134.92,0.05665292]
[1742430791098,0.05430109,134.95,134.92,49.06466097]
[1742430791906,0.05430109,134.95,134.92,28.25665292]
[1742430793509,7.4096,134.93,134.92,28.25665292]
[1742430794002,7.4091,134.94,134.92,28.25665292]
[1742430794401,0.05430109,134.95,134.92,28.25665292]
[1742430794596,7.46310109,134.95,134.92,35.66645292]
[1742430794796,0.05430109,134.95,134.92,28.25665292]
[1742430796602,7.4092,134.94,134.92,28.25665292]
[1742430796803,0.05430109,134.95,134.92,28.25665292]
[1742430797004,7.46300109,134.95,134.93,7.4096]
[1742430797208,7.46300109,134.95,134.92,28.25665292]
[1742430797702,0.05430109,134.95,134.93,20.80800805]
[1742430798199,7.46280109,134.95,134.93,28.21730805]
[1742430798401,0.05430109,134.95,134.93,20.80800805]
[1742430799202,0.05430109,134.95,134.93,28.21730805]
[1742430800005,0.05430109,134.95,134.94,7.409]
[1742430800404,0.00217166,134.95,134.94,7.409]
[1742430800606,7.4066,134.99,134.96,7.4074]
[1742430800805,7.4066,134.99,134.97,28.2]
[1742430801708,7.4068,134.98,134.97,28.2]
[1742430802011,0.05360162,134.99,134.97,28.2502375]
[1742430802210,7.46010162,134.99,134.97,28.2502375]
[1742430802509,0.05360162,134.99,134.97,28.2502375]
[1742430803201,7.4068,134.98,134.97,28.2502375]
[1742430803811,7.4068,134.98,134.97,0.0502375]
[1742430807512,7.4095,134.94,134.9,35.90340805]
[1742430807712,7.4095,134.94,134.91,28.18]
[1742430808012,7.4095,134.94,134.91,35.5904]
[1742430808212,7.4096,134.93,134.91,35.5904]
[1742430808512,7.4096,134.93,134.91,28.18]
[1742430808707,0.05529598,134.93,134.91,28.23704208]
[1742430809305,7.46489598,134.93,134.92,28.18]
[1742430810009,7.4101,134.92,134.91,0.05704208]
[1742430812212,7.46509598,134.93,134.91,0.05704208]
[1742430812413,0.05529598,134.93,134.91,0.05704208]
[1742430813513,0.05529598,134.93,134.92,7.4101]
[1742430813714,0.05529598,134.93,134.92,35.5901]
[1742430815717,0.05529598,134.93,134.92,28.18]
[1742430816417,0.05529598,134.93,134.92,35.5901]
[1742430817919,0.05529598,134.93,134.92,28.18]
[1742430819715,7.46489598,134.93,134.92,28.18]
[1742430820021,0.05529598,134.93,134.91,0.05704208]
[1742430820221,7.4101,134.92,134.91,0.05704208]
[1742430826625,7.46489598,134.93,134.91,0.05704208]
[1742430827326,7.4101,134.92,134.91,0.05704208]
[1742430830722,7.46529598,134.93,134.91,0.05704208]
[1742430830924,0.05529598,134.93,134.91,28.23704208]
[1742430831321,7.46499598,134.93,134.91,35.64744208]
[1742430831727,7.46499598,134.93,134.91,28.23704208]
[1742430832231,7.4101,134.92,134.91,28.23704208]
[1742430836231,7.46509598,134.93,134.91,28.23704208]
[1742430836432,0.05529598,134.93,134.91,28.23704208]
[1742430836633,0.05529598,134.93,134.92,20.80800805]
[1742430836930,0.00505848,134.93,134.92,28.21810805]
[1742430837129,5.0613,134.98,134.92,13.27855391]
[1742430837130,7.4077,134.97,134.92,13.27855391]
[1742430837331,7.4077,134.97,134.95,13.27855391]
[1742430838227,7.4077,134.97,134.95,20.73554239]
[1742430838426,7.45996332,134.97,134.95,20.73554239]
[1742430838728,0.05226332,134.97,134.96,13.27855391]
[1742430839032,0.05226332,134.97,134.96,20.68645391]
[1742430839233,0.05226332,134.97,134.96,20.73608854]
[1742430839532,7.4061,135.0,134.96,20.73608854]
[1742430839732,58.82453404,135.04,134.97,28.18]
[1742430840229,33.3168,135.05,134.97,28.18]
[1742430840526,33.3168,135.05,135.0,0.04739897]
[1742430840731,0.05156241,135.02,135.0,0.04739897]
[1742430840932,7.4053,135.01,135.0,0.04739897]
[1742430844124,0.05156241,135.02,135.0,0.04739897]
[1742430844338,40.85937872,135.09,135.01,325.25217708]
[1742430844533,81.71875745,135.1,135.07,20.73608854]
[1742430844733,81.71875745,135.1,135.09,20.73608854]
[1742430845034,81.71875745,135.1,135.09,48.89608854]
[1742430846438,81.71875745,135.1,135.09,28.16]
[1742430846638,0.05522863,135.11,135.09,28.16]
[1742430846840,7.45512863,135.11,135.09,28.16]
[1742430847139,0.05522863,135.11,135.09,28.16]
[1742430847436,7.45512863,135.11,135.09,28.16]
[1742430847633,0.05522863,135.11,135.09,28.16]
[1742430848038,0.05522863,135.11,135.09,48.89608854]
[1742430849240,5.0754,135.16,135.09,56.29648854]
[1742430849540,5.0754,135.16,135.11,20.73608854]
[1742430849737,7.3979,135.15,135.12,28.16]
[1742430850034,5.0754,135.16,135.12,28.16]
[1742430850341,0.05695266,135.15,135.13,20.78782843]
[1742430851441,0.05695266,135.15,135.13,0.05173989]
[1742430853341,7.45465266,135.15,135.13,0.05173989]
[1742430853943,0.05695266,135.15,135.13,0.05173989]
[1742430854531,0.05695266,135.15,135.13,20.78782843]
[1742430854735,0.05695266,135.15,135.13,28.18612843]
[1742430855945,0.05695266,135.15,135.14,7.3981]
[1742430856446,7.3955,135.19,135.15,7.3972]
[1742430856641,4.8874,135.2,135.16,28.14]
[1742430856842,4.8874,135.2,135.15,28.14]
[1742430857647,7.3969,135.17,135.16,0.05407433]
[1742430858749,7.397,135.16,135.15,28.14]
[1742430861241,7.3966,135.17,135.15,28.14]
[1742430861448,7.3966,135.17,135.15,48.87608854]
[1742430861649,0.05076671,135.19,135.15,48.87608854]
[1742430863758,7.397,135.16,135.15,48.87608854]
[1742430864760,7.3967,135.17,135.15,48.87608854]
[1742430864960,0.05076671,135.19,135.15,48.87608854]
[1742430865161,7.397,135.16,135.15,28.14]
[1742430865665,0.05076671,135.19,135.14,0.05402314]
[1742430865959,7.3975,135.15,135.14,0.05402314]
[1742430866962,7.3975,135.15,135.14,28.17402314]
[1742430867556,7.3992,135.12,135.11,20.73608854]
[1742430867756,23.34958854,135.18,135.11,28.12]
[1742430868457,2.6135,135.18,135.11,48.85608854]
[1742430868658,0.05573638,135.16,135.13,0.0475681]
[1742430869358,7.3981,135.14,135.13,0.0475681]
[1742430870368,25.62348854,135.2,135.13,0.0475681]
[1742430870369,81.71875745,135.35,135.13,431.66980142]
[1742430870562,2.608,135.34,135.3,20.73608854]
[1742430870862,2.608,135.34,135.28,20.73608854]
[1742430871163,7.3886,135.32,135.29,28.12]
[1742430871355,0.05173127,135.32,135.3,0.05444858]
[1742430871759,7.44023127,135.32,135.3,0.05444858]
[1742430871964,0.05173127,135.32,135.3,0.05444858]
[1742430873362,7.43993127,135.32,135.3,0.05444858]
[1742430873862,7.3907,135.28,135.2,7.3944]
[1742430874064,20.73608854,135.29,135.21,28.1]
[1742430874261,2.6346,135.28,135.21,28.1]
[1742430874468,10.0253,135.28,135.21,48.83608854]
[1742430874662,2.6346,135.28,135.23,20.73608854]
[1742430874862,2.6346,135.28,135.25,20.73608854]
[1742430875062,0.05293579,135.27,135.26,28.1]
[1742430875459,0.05293579,135.27,135.25,20.73608854]
[1742430875660,0.05293579,135.27,135.26,28.1]
[1742430881564,2.4212,135.31,135.26,28.1]
[1742430881869,255.26,135.37,135.29,20.73608854]
[1742430882072,4.921,135.36,135.3,28.1]
[1742430882763,0.05387005,135.34,135.3,28.1]
[1742430882971,7.3882,135.32,135.31,0.04992357]
[1742430884870,7.3888,135.31,135.3,28.08]
[1742430886274,7.3893,135.3,135.29,28.12664692]
[1742430886876,7.3914,135.27,135.25,20.73608854]
[1742430887073,7.3914,135.27,135.26,28.08]
[1742430887377,20.73608854,135.32,135.26,28.08]
[1742430887577,7.3909,135.27,135.26,28.08]
[1742430890378,7.3915,135.26,135.25,0.05041527]
[1742430890874,7.3937,135.22,135.21,20.73608854]
[1742430891073,7.3937,135.22,135.21,28.08]
[1742430891274,20.73608854,135.28,135.21,28.08]
[1742430891475,7.3937,135.22,135.21,28.08]
[1742430891875,20.73608854,135.28,135.19,20.73608854]
[1742430892082,7.3945,135.21,135.2,28.13008182]
[1742430893378,0.05014855,135.23,135.2,28.13008182]
[1742430893878,7.3942,135.21,135.2,0.05008182]
[1742430894879,7.3967,135.17,135.15,20.73608854]
[1742430895085,7.3967,135.17,135.16,28.08]
[1742430895376,2.4176,135.22,135.13,20.73608854]
[1742430895377,23.15368854,135.22,135.13,20.73608854]
[1742430895582,23.15368854,135.22,135.14,28.08]